bitfinex-derivatives/quotes_ETHF0:USTF0_20250830
["timestamp","ask_amount","ask_price","bid_price","bid_amount"]
[1756583415219,0.189,4353.6,4353.5,0.4293]
[1756583415419,0.4744,4353.6,4353.5,0.5668]
[1756583415614,0.4744,4353.6,4353.5,3.70833159]
[1756583417127,0.4744,4353.6,4353.5,0.5668]
[1756583417328,0.4744,4353.6,4353.5,3.70833159]
[1756583418629,0.4744,4353.6,4353.2,0.1375]
[1756583418832,0.4744,4353.6,4353.5,0.231]
[1756583419031,0.4744,4353.6,4353.5,0.5668]
[1756583422338,0.4744,4353.6,4353.5,3.70833159]
[1756583424840,0.2854,4353.6,4353.5,3.70833159]
[1756583425140,0.2854,4353.9,4353.5,3.57083159]
[1756583425439,3.6822,4354.0,4353.9,0.3363]
[1756583427435,3.2078,4354.5,4353.9,3.47783159]
[1756583427644,0.2854,4354.4,4354.1,0.138]
[1756583427828,0.2854,4354.3,4354.2,0.5663]
[1756583428234,0.4744,4354.3,4354.2,3.70783159]
[1756583431842,0.2854,4354.3,4354.2,3.70783159]
[1756583432437,3.4932,4354.5,4354.3,0.138]
[1756583432637,0.2854,4354.9,4354.8,0.1983]
[1756583432843,0.2854,4354.9,4354.8,0.5663]
[1756583433044,0.4744,4354.9,4354.8,0.5663]
[1756583434635,3.2078,4355.5,4354.8,0.5663]
[1756583434841,0.189,4355.1,4355.0,0.3363]
[1756583435039,0.4744,4355.1,4355.0,0.3363]
[1756583435243,0.4744,4355.1,4355.0,3.47783159]
[1756583436440,0.2854,4355.1,4355.0,3.47783159]
[1756583436642,0.4744,4355.4,4355.3,0.1983]
[1756583436846,0.4744,4355.4,4355.3,0.5663]
[1756583438736,0.5022,4356.0,4355.9,0.1878]
[1756583439143,0.5022,4356.0,4355.7,0.137]
[1756583439947,0.5022,4356.0,4355.6,0.23]
[1756583440142,0.2021,4356.0,4355.6,3.37153159]
[1756583440342,3.2078,4356.1,4355.6,3.37153159]
[1756583440548,0.5022,4355.7,4355.6,3.37153159]
[1756583440850,0.5022,4355.7,4355.6,0.23]
[1756583441238,0.5022,4355.7,4355.4,0.137]
[1756583441443,0.5022,4355.6,4355.5,3.37153159]
[1756583441742,0.5022,4355.6,4355.5,0.23]
[1756583441944,0.5022,4355.6,4355.5,3.37153159]
[1756583443351,0.5022,4355.6,4355.5,3.69633159]
[1756583445151,3.5079,4356.1,4355.5,3.55933159]
[1756583445454,0.2021,4355.8,4355.7,0.1878]
[1756583445651,0.5022,4355.8,4355.7,0.1878]
[1756583445851,0.5022,4355.8,4355.7,3.32933159]
[1756583446052,0.5022,4355.8,4355.7,3.46633159]
[1756583446254,0.5022,4355.8,4355.7,3.69633159]
[1756583449056,0.5022,4355.8,4355.7,0.5548]
[1756583449258,0.5022,4355.8,4355.7,3.69633159]
[1756583449460,0.3001,4355.8,4355.7,3.69633159]
[1756583449751,3.2078,4356.1,4355.8,0.137]
[1756583449956,3.71,4356.1,4356.0,0.3248]
[1756583450156,3.71,4356.1,4356.0,0.5548]
[1756583450354,3.71,4356.1,4356.0,3.69633159]
[1756583455359,3.71,4356.1,4356.0,3.55933159]
[1756583457561,3.71,4356.1,4356.0,3.37153159]
[1756583458663,3.71,4356.1,4356.0,0.23]
[1756583458859,0.5022,4356.0,4355.9,0.186]
[1756583459064,0.5022,4356.0,4355.9,0.5108]
[1756583460259,0.5022,4356.0,4355.8,0.23]
[1756583460562,0.5022,4356.0,4355.9,0.3248]
[1756583461163,0.5022,4356.0,4355.9,3.46633159]
[1756583462761,0.5022,4356.0,4355.9,3.32933159]
[1756583462967,0.5022,4356.0,4355.3,0.137]
[1756583463260,0.5022,4356.0,4355.4,0.23]
[1756583463567,0.2021,4355.5,4355.4,3.37153159]
[1756583463768,0.5022,4355.5,4355.4,0.367]
[1756583464064,0.5022,4355.5,4355.4,3.50853159]
[1756583464468,0.5022,4355.5,4355.4,3.46633159]
[1756583464662,0.5022,4355.5,4355.4,3.69633159]
[1756583465064,0.5022,4355.5,4355.4,3.46633159]
[1756583465268,0.5022,4355.5,4355.4,3.69633159]
[1756583468963,0.5022,4355.5,4355.4,3.46633159]
[1756583469163,0.5022,4355.5,4355.4,3.69633159]
[1756583469463,3.71,4355.5,4355.4,3.69633159]
[1756583471865,3.71,4355.5,4355.0,2.054125]
[1756583471866,3.9396,4355.5,4355.0,2.054125]
[1756583472067,0.2074,4354.6,4354.5,2.054125]
[1756583472259,4.27126304,4354.6,4353.7,0.1378]
[1756583472466,3.7028,4353.9,4353.8,3.37153159]
[1756583472765,3.7028,4353.9,4353.8,0.231]
[1756583473967,3.4152,4353.9,4353.0,0.1378]
[1756583474169,0.2074,4353.2,4353.1,0.4385]
[1756583474367,3.2078,4353.9,4353.1,3.58003159]
[1756583474670,0.2876,4353.8,4353.3,0.1378]
[1756583474869,0.495,4353.8,4353.7,0.2075]
[1756583475174,0.495,4353.8,4353.7,0.3453]
[1756583475574,0.2074,4353.8,4353.7,0.5763]
[1756583476074,0.495,4353.8,4353.7,0.5763]
[1756583476664,0.495,4353.8,4353.7,0.3453]
[1756583481776,0.495,4353.8,4353.7,3.48683159]
[1756583484680,0.2876,4353.8,4353.7,3.48683159]
[1756583486286,3.2078,4354.4,4354.2,0.2075]
[1756583486583,3.2078,4354.4,4354.3,0.5747]
[1756583486584,3.4954,4354.4,4354.3,0.5747]
[1756583486786,3.7028,4354.4,4354.3,0.5747]
[1756583487882,3.89534568,4354.4,4354.3,0.5747]
[1756583489983,3.89534568,4354.4,4354.3,0.5757]
[1756583493197,3.89534568,4354.4,4354.3,0.231]
[1756583494698,3.89534568,4354.4,4354.3,0.3682]
[1756583495497,3.89567145,4354.4,4354.3,0.231]
[1756583501798,3.89567145,4354.4,4353.4,3.2078]
[1756583501799,7.86033146,4354.4,4353.4,3.2078]
[1756583501994,0.3057,4353.4,4353.1,0.1372]
[1756583502197,0.5101,4352.9,4352.8,3.2078]
[1756583502402,0.70297145,4352.9,4352.8,3.575]
[1756583502596,0.70297145,4352.9,4352.8,3.7674]
[1756583502794,0.70297145,4352.9,4352.8,3.5374]
[1756583503100,0.70297145,4352.9,4352.8,3.4378]
[1756583503901,0.703635,4352.9,4352.8,3.4378]
[1756583504403,0.703635,4352.9,4352.8,3.575]
[1756583506101,0.5101,4352.9,4352.8,3.575]
[1756583506400,0.70359147,4352.9,4352.8,3.575]
[1756583506602,0.70359147,4352.9,4352.8,3.7674]
[1756583506803,0.70357101,4352.9,4352.8,3.7674]
[1756583509003,0.70357101,4352.9,4352.8,3.5374]
[1756583509302,0.70357101,4352.9,4352.8,3.7674]
[1756583511996,0.19347101,4352.9,4352.8,3.7674]
[1756583513398,0.49917101,4352.9,4352.8,3.7674]
[1756583514604,0.19347101,4352.9,4352.8,3.7674]
[1756583516698,0.19332981,4352.9,4352.8,3.7674]
[1756583518203,0.19332981,4352.9,4352.8,3.99713]
[1756583518703,0.19332981,4352.9,4352.8,3.7674]
[1756583523309,3.2078,4353.9,4352.8,4.04367]
[1756583523310,0.3057,4353.6,4352.8,4.04367]
[1756583523613,0.70249532,4353.5,4352.9,3.14153159]
[1756583523809,0.3057,4353.8,4353.0,0.23]
[1756583524110,0.5101,4353.2,4353.1,0.23]
[1756583524408,0.5101,4353.2,4353.1,3.37153159]
[1756583524709,0.5101,4353.2,4353.1,0.23]
[1756583526411,0.5101,4353.2,4352.8,3.2078]
[1756583526614,0.5101,4353.2,4353.1,3.14153159]
[1756583526813,0.5101,4353.2,4353.1,3.37153159]
[1756583527013,0.5101,4353.2,4353.1,0.23]
[1756583527213,0.5101,4353.2,4353.1,0.2323]
[1756583527714,0.3015,4353.6,4353.1,0.2323]
[1756583527914,0.3015,4353.6,4353.5,0.0014]
[1756583528102,0.5035,4353.6,4353.5,0.2323]
[1756583528308,0.3015,4353.6,4353.5,3.37383159]
[1756583528508,0.5035,4353.6,4353.5,3.37383159]
[1756583528711,0.5035,4353.6,4353.5,3.14383159]
[1756583528914,0.5035,4353.6,4353.5,3.37383159]
[1756583529510,3.4098,4353.9,4353.8,0.0014]
[1756583529814,0.5035,4353.9,4353.8,3.37383159]
[1756583530115,0.5035,4353.9,4353.8,0.2323]
[1756583530413,3.2078,4354.4,4353.9,0.0009]
[1756583530618,0.5035,4354.3,4354.2,0.0023]
[1756583530914,0.5035,4354.3,4354.2,0.2323]
[1756583531417,0.5035,4354.3,4354.2,0.23]
[1756583531813,0.5035,4354.3,4354.2,0.2309]
[1756583532013,0.5035,4354.3,4354.2,0.2323]
[1756583533814,0.5035,4354.3,4353.9,0.0009]
[1756583534118,0.5035,4354.3,4354.0,0.2309]
[1756583534318,0.5035,4354.3,4354.1,0.2309]
[1756583534810,0.5035,4354.3,4354.2,3.14153159]
[1756583535309,0.69327749,4354.3,4354.2,3.14153159]
[1756583535510,0.69327749,4354.3,4354.1,0.2309]
[1756583535816,0.5035,4354.3,4354.2,3.14153159]
[1756583536016,0.69327749,4354.3,4354.2,3.14153159]
[1756583536218,0.69327749,4354.3,4354.1,0.2309]
[1756583536417,0.5035,4354.3,4354.2,3.14153159]
[1756583536922,0.69325099,4354.3,4354.1,0.2309]
[1756583537111,0.5035,4354.3,4354.2,3.14153159]
[1756583537311,0.69323665,4354.3,4354.2,3.14383159]
[1756583537612,0.69323665,4354.3,4354.2,0.0023]
[1756583537811,0.69323665,4354.3,4354.1,0.23]
[1756583538020,0.5035,4354.3,4354.2,3.14153159]
[1756583538217,0.69323581,4354.3,4354.2,3.14153159]
[1756583538514,0.69323581,4354.3,4354.1,0.23]
[1756583538712,0.69323581,4354.2,4354.1,0.23]
[1756583539811,0.3015,4353.5,4353.3,0.0009]
[1756583540117,0.202,4353.2,4352.7,3.2078]
[1756583540318,0.202,4352.9,4352.8,0.23]
[1756583540513,0.69323581,4352.9,4352.8,3.37153159]
[1756583540708,0.69323581,4352.9,4352.8,0.23]
[1756583542118,0.3015,4352.8,4352.7,3.2078]
[1756583542422,0.5035,4352.6,4352.5,33.07]
[1756583542723,0.69323581,4352.6,4352.5,33.3]
[1756583542918,0.69323581,4352.6,4352.5,36.44153159]
[1756583544623,0.69323581,4352.6,4352.5,33.3]
[1756583547320,0.5035,4352.6,4352.5,33.3]
[1756583547622,0.69327695,4352.6,4352.5,33.3]
[1756583548019,0.5035,4352.6,4352.5,33.3]
[1756583549026,0.3015,4353.9,4352.5,37.3]
[1756583549220,0.3015,4353.9,4352.8,3.2078]
[1756583549424,0.22972,4353.8,4352.9,0.23]
[1756583549724,0.22972,4353.8,4352.9,3.37153159]
[1756583549921,0.3015,4353.7,4353.0,3.14153159]
[1756583550122,0.3015,4353.7,4353.1,0.231]
[1756583550322,3.2078,4354.0,4353.1,3.37253159]
[1756583550625,0.22970001,4353.9,4353.2,3.14153159]
[1756583550822,0.5035,4353.4,4353.3,0.231]
[1756583551024,0.5035,4353.4,4353.3,3.37253159]
[1756583551223,0.5035,4353.4,4353.3,0.231]
[1756583553328,0.5035,4353.4,4353.3,0.23]
[1756583575641,0.2912,4354.2,4353.3,4.45971]
[1756583575839,0.2912,4354.2,4353.4,0.22965]
[1756583576039,0.4875,4353.5,4353.4,0.22965]
[1756583576237,0.2912,4353.4,4353.3,0.23]
[1756583578443,0.4875,4353.4,4353.3,0.23]
[1756583579337,0.2912,4354.2,4353.3,4.45971]
[1756583579538,0.1963,4354.2,4353.3,2.284125]
[1756583579836,0.1963,4354.2,4354.1,3.14153159]
[1756583579837,0.4875,4354.2,4354.1,3.14153159]
[1756583580037,0.4875,4354.2,4354.1,3.37153159]
[1756583580238,0.4875,4354.2,4354.1,0.23]
[1756583580740,0.2912,4354.4,4354.1,0.23]
[1756583580942,0.2912,4354.7,4354.2,3.14153159]
[1756583581137,0.1963,4354.8,4354.3,3.14153159]
[1756583581345,0.2912,4354.6,4354.3,6.34933159]
[1756583581538,0.1963,4354.6,4354.4,3.14153159]
[1756583581744,0.2912,4354.5,4354.3,3.2078]
[1756583581940,0.2912,4354.5,4354.4,3.14153159]
[1756583583950,3.2078,4354.9,4354.4,3.14153159]
[1756583584151,3.6953,4354.9,4354.8,3.14153159]
[1756583584450,0.4875,4354.9,4354.5,0.23]
[1756583584647,0.4875,4354.9,4354.8,3.14153159]
[1756583585149,0.2912,4354.7,4354.5,0.23]
[1756583585348,0.2912,4354.7,4354.6,3.14153159]
[1756583585547,3.2078,4355.5,4354.6,3.14153159]
[1756583585850,0.2912,4355.4,4354.7,3.14153159]
[1756583586054,0.2912,4355.4,4354.6,3.14153159]
[1756583586248,0.1963,4355.4,4354.8,3.2078]
[1756583586450,0.1963,4355.3,4354.9,0.23]
[1756583586645,0.4875,4355.4,4354.9,3.37153159]
[1756583586846,0.1963,4355.3,4355.0,3.14153159]
[1756583587049,0.2912,4355.1,4355.0,3.14153159]
[1756583587248,0.2912,4355.1,4354.9,0.23]
[1756583587543,0.2912,4355.1,4355.0,3.14153159]
[1756583588349,0.2983,4355.4,4355.0,3.14153159]
[1756583588545,3.2078,4355.5,4355.1,3.14153159]
[1756583588745,3.2078,4355.5,4355.2,0.23]
[1756583588951,0.4967,4355.4,4355.2,0.23]
[1756583589247,0.4967,4355.4,4355.3,3.14153159]
[1756583589648,0.4967,4355.4,4355.2,0.23]
[1756583589855,0.4967,4355.4,4355.3,3.14153159]
[1756583590451,0.4967,4355.4,4355.2,0.23]
[1756583590658,0.4967,4355.4,4355.3,3.14153159]
[1756583591155,0.4967,4355.3,4355.2,0.23]
[1756583591655,0.4967,4355.3,4355.2,3.37153159]
[1756583593865,0.4967,4355.3,4355.2,3.14153159]
[1756583594061,0.4967,4354.4,4354.3,3.2078]
[1756583594260,0.4967,4354.4,4354.3,3.4378]
[1756583600569,0.4967,4354.4,4354.3,3.4399]
[1756583602258,0.2983,4355.3,4354.4,0.0008]
[1756583602458,0.52793,4355.3,4354.6,0.0008]
[1756583602770,0.4967,4354.8,4354.7,0.2321]
[1756583602969,0.2983,4354.8,4354.7,0.2321]
[1756583603164,0.4967,4354.8,4354.7,3.37363159]
[1756583613681,0.4967,4354.8,4354.7,0.2321]
[1756583614782,0.4967,4354.8,4354.7,3.37363159]
[1756583619381,0.2983,4354.8,4354.7,3.37363159]
[1756583620073,0.4865,4354.8,4354.7,3.37363159]
[1756583623583,0.2816,4354.7,4354.6,0.23]
[1756583623785,0.69945,4354.7,4354.6,0.23]
[1756583624688,0.4698,4354.7,4354.6,0.23]
[1756583629491,0.4698,4353.9,4353.8,2.054125]
[1756583629794,0.4698,4353.9,4353.8,0.23]
[1756583634897,0.4698,4353.8,4353.7,3.2078]
[1756583635097,0.4698,4353.8,4353.7,3.4378]
[1756583635297,0.4698,4353.8,4353.7,6.57933159]
[1756583639693,0.4698,4353.8,4353.7,6.34933159]
[1756583639893,0.4698,4353.8,4353.6,33.084]
[1756583640095,0.4698,4353.8,4353.7,3.37153159]
[1756583640291,0.1882,4353.8,4353.6,33.084]
[1756583640491,0.2816,4353.7,4353.2,3.2078]
[1756583640694,0.4698,4353.3,4353.2,3.2078]
[1756583640893,0.4698,4353.3,4353.2,3.4378]
[1756583641393,3.2078,4354.3,4353.2,6.57933159]
[1756583641600,3.2078,4354.3,4353.3,3.14153159]
[1756583641601,0.4698,4354.0,4353.3,3.14153159]
[1756583641894,0.4698,4354.0,4353.4,0.23]
[1756583642195,0.1882,4354.0,4353.4,3.37153159]
[1756583642397,3.2078,4354.3,4353.5,3.14153159]
[1756583642699,0.4698,4353.7,4353.6,0.23]
[1756583642900,0.4698,4353.7,4353.6,3.37153159]
[1756583643200,0.4698,4353.7,4353.6,0.23]
[1756583647000,0.4698,4354.2,4353.6,0.23]
[1756583647197,0.2816,4354.1,4353.7,3.14153159]
[1756583647595,0.2058,4354.2,4354.0,3.14153159]
[1756583647790,0.2058,4354.2,4354.1,0.23]
[1756583648196,0.5,4354.2,4354.1,0.23]
[1756583668716,0.2058,4353.8,4353.7,3.2078]
[1756583668921,0.5,4353.8,4353.7,3.4378]
[1756583669715,0.5,4353.8,4353.7,6.57933159]
[1756583675321,0.5,4353.8,4353.7,3.14153159]
[1756583675618,0.5,4353.8,4353.7,3.37153159]
[1756583680431,0.43549,4353.8,4353.5,2.054125]
[1756583680725,0.5151,4353.1,4353.0,33.08]
[1756583680917,0.5151,4353.1,4353.0,33.31]
[1756583682221,4.43272,4353.1,4352.5,2.054125]
[1756583682428,0.3121,4352.5,4352.1,5.261925]
[1756583682627,0.3121,4353.2,4352.2,5.42565659]
[1756583682927,0.22974,4353.3,4352.2,5.42565659]
[1756583683131,3.2078,4353.4,4352.3,3.14153159]
[1756583683427,0.3121,4353.2,4352.4,0.231]
[1756583683627,0.5151,4352.6,4352.5,3.14153159]
[1756583683927,0.5151,4352.6,4352.5,3.37253159]
[1756583694727,0.5151,4352.6,4352.5,0.231]
[1756583695732,0.3121,4352.6,4352.5,3.37253159]
[1756583696431,0.5151,4352.6,4352.5,3.37253159]
[1756583702242,0.203,4351.7,4351.4,3.2078]
[1756583702448,0.203,4351.7,4351.6,33.311]
[1756583702449,0.5151,4351.7,4351.6,33.311]
[1756583702647,0.5151,4351.7,4351.6,0.231]
[1756583702847,0.5151,4351.7,4350.9,3.2078]
[1756583703043,3.2078,4352.0,4351.0,3.37253159]
[1756583703242,0.22981,4351.9,4351.0,3.37253159]
[1756583703443,0.22981,4351.9,4351.1,3.14153159]
[1756583703646,0.3121,4351.8,4351.2,0.231]
[1756583703841,0.203,4351.3,4351.2,3.37253159]
[1756583704044,0.3121,4351.2,4350.9,3.2078]
[1756583704245,0.5151,4351.0,4350.9,3.2078]
[1756583704741,0.5151,4351.0,4350.9,6.58033159]
[1756583705142,0.5151,4351.0,4350.9,3.37253159]
[1756583706952,0.3121,4351.0,4350.9,3.37253159]
[1756583708952,0.5151,4351.0,4350.9,3.37253159]
[1756583710942,3.2078,4351.5,4350.9,3.37253159]
[1756583710943,0.2912,4351.4,4350.9,3.37253159]
[1756583711147,0.2912,4351.4,4351.0,3.14153159]
[1756583711452,0.4876,4351.4,4351.1,0.231]
[1756583711649,3.2078,4351.5,4351.1,3.37253159]
[1756583711856,0.4876,4351.2,4351.1,0.231]
[1756583718155,0.4876,4351.2,4350.2,33.088]
[1756583718156,0.1964,4350.5,4350.2,33.088]
[1756583718351,0.1964,4350.4,4350.3,0.46085]
[1756583718555,0.4876,4350.4,4350.3,3.60238159]
[1756583718758,0.4876,4350.4,4350.3,0.231]
[1756583719957,0.2912,4350.4,4350.3,0.231]
[1756583720158,0.2912,4351.4,4350.3,0.231]
[1756583720359,0.22984,4351.4,4350.4,3.14153159]
[1756583720557,3.2078,4351.5,4350.5,3.14153159]
[1756583720757,0.52104,4351.4,4350.6,0.231]
[1756583721159,0.2912,4351.4,4350.7,3.14153159]
[1756583721958,3.2078,4351.5,4350.7,3.14153159]
[1756583722154,0.4876,4350.9,4350.8,3.14153159]
[1756583722360,0.4876,4350.9,4350.8,0.231]
[1756583726561,0.1964,4350.9,4350.8,0.231]
[1756583726762,0.4876,4350.3,4350.2,33.088]
[1756583726962,0.4876,4350.3,4350.2,33.319]
[1756583727161,0.4876,4350.3,4350.2,36.46053159]
[1756583727868,0.2912,4350.3,4350.2,36.46053159]
[1756583734671,0.2912,4350.3,4350.2,36.22953159]
[1756583734862,0.2912,4350.3,4350.2,36.46053159]
[1756583736579,0.2912,4350.3,4350.2,36.22953159]
[1756583736872,0.2912,4350.3,4350.2,36.46053159]
[1756583737169,0.2912,4350.3,4350.2,33.088]
[1756583737370,0.2912,4350.3,4350.2,33.319]
[1756583745977,0.4972,4350.3,4350.2,0.231]
[1756583753770,0.4972,4350.3,4350.2,3.37253159]
[1756583755877,3.2078,4350.5,4350.2,3.37253159]
[1756583756082,3.5116,4350.5,4350.3,3.14153159]
[1756583756380,3.7176,4350.5,4350.4,0.231]
[1756583756580,3.7176,4350.5,4350.4,0.05856587]
[1756583766683,3.7176,4350.5,4349.9,3.2078]
[1756583766684,0.3038,4350.4,4349.9,3.2078]
[1756583766885,0.5098,4350.1,4350.0,3.37253159]
[1756583771987,0.5098,4350.1,4350.0,3.14153159]
[1756583772192,0.5098,4350.1,4350.0,3.37253159]
[1756583777792,0.5098,4350.1,4350.0,0.231]
[1756583778793,0.5098,4350.1,4350.0,3.37253159]
[1756583782493,0.5098,4350.1,4350.0,3.14153159]
[1756583782697,0.5098,4350.1,4350.0,3.37253159]
[1756583783795,0.5098,4350.1,4350.0,0.231]
[1756583784003,0.5098,4350.1,4350.0,3.37253159]
[1756583785396,0.5098,4350.1,4350.0,0.231]
[1756583785597,0.5098,4350.1,4350.0,3.37253159]
[1756583786091,0.5098,4350.1,4350.0,3.14153159]
[1756583786292,0.5098,4350.1,4350.0,3.37253159]
[1756583788495,0.3076,4350.8,4350.0,5.65653659]
[1756583788697,0.514,4350.8,4350.1,3.37135159]
[1756583788892,0.514,4350.8,4350.2,0.231]
[1756583789094,0.514,4350.8,4350.2,3.37253159]
[1756583789301,3.2078,4351.0,4350.3,3.14153159]
[1756583789502,0.514,4350.9,4350.4,0.231]
[1756583789798,3.2078,4351.0,4350.4,3.37253159]
[1756583789994,3.2078,4351.0,4350.5,3.14153159]
[1756583790197,0.514,4350.7,4350.6,0.231]
[1756583790397,0.514,4350.7,4350.6,3.37253159]
[1756583790598,0.514,4350.7,4350.6,0.231]
[1756583797302,0.514,4350.7,4350.6,0.2343]
[1756583798495,0.3076,4350.7,4350.6,0.2343]
[1756583799003,0.2869,4351.5,4350.7,0.0013]
[1756583799192,3.2078,4351.6,4350.7,3.14153159]
[1756583799397,0.2869,4351.5,4350.8,3.14153159]
[1756583799598,0.4752,4351.0,4350.9,0.233]
[1756583799799,0.4752,4351.0,4350.9,0.231]
[1756583800000,0.4752,4351.0,4350.9,3.37253159]
[1756583802203,0.4752,4351.0,4350.9,0.231]
[1756583802403,0.4752,4351.0,4350.9,3.37253159]
[1756583803603,0.4752,4351.0,4350.9,3.37583159]
[1756583805603,0.2869,4351.0,4350.9,3.37583159]
[1756583806102,0.4752,4351.0,4350.9,3.37583159]
[1756583810306,0.4752,4351.0,4350.9,3.14153159]
[1756583810499,0.4752,4350.4,4350.3,3.2111]
[1756583810704,0.4752,4350.4,4350.3,3.4421]
[1756583813909,0.2869,4350.4,4350.3,3.4421]
[1756583814406,0.4752,4350.4,4350.3,3.2111]
[1756583814708,0.4752,4350.4,4350.3,3.4401]
[1756583814907,0.4752,4350.4,4350.3,3.4421]
[1756583820500,0.2869,4350.4,4350.3,3.4421]
[1756583820706,0.4752,4351.0,4350.9,0.002]
[1756583820905,3.2078,4351.6,4351.0,3.14153159]
[1756583821105,0.4752,4351.5,4351.4,0.0033]
[1756583821301,0.4752,4351.5,4351.4,0.2343]
[1756583828516,0.4752,4351.5,4351.4,3.37583159]
[1756583830506,0.4752,4351.5,4351.4,3.37253159]
[1756583832020,0.4752,4351.5,4351.4,0.231]
[1756583860437,0.2869,4351.5,4351.4,0.231]
[1756583860935,0.4939,4351.5,4351.4,0.231]
[1756583863338,0.2966,4352.0,4351.4,4.231]
[1756583863539,0.2966,4352.0,4351.4,2.285125]
[1756583863737,0.207,4352.0,4351.5,3.14153159]
[1756583863928,3.4148,4352.1,4351.5,3.14153159]
[1756583864131,0.2966,4351.9,4351.6,3.14153159]
[1756583864333,3.2078,4352.1,4351.5,3.14153159]
[1756583864532,0.2966,4352.0,4351.5,3.14153159]
[1756583864732,0.2966,4351.9,4351.6,3.37132159]
[1756583865038,0.2966,4351.9,4351.5,3.37132159]
[1756583865333,0.2966,4352.3,4351.8,6.34933159]
[1756583865540,3.2078,4352.6,4351.9,0.231]
[1756583865541,0.5036,4352.5,4351.9,0.231]
[1756583865733,0.2966,4352.4,4351.9,3.60230158]
[1756583865929,0.207,4352.4,4352.0,3.14153159]
[1756583866134,0.2966,4353.0,4352.3,3.14153159]
[1756583866334,0.2966,4353.0,4352.4,0.231]
[1756583866735,3.2078,4353.1,4352.5,3.14153159]
[1756583866937,0.207,4353.1,4353.0,3.14153159]
[1756583867145,0.2966,4352.6,4352.5,3.37127159]
[1756583867439,3.2078,4353.6,4352.6,3.2078]
[1756583867641,3.2078,4353.6,4352.6,6.57905159]
[1756583867841,0.207,4352.8,4352.7,3.14153159]
[1756583868235,0.5036,4352.8,4352.7,3.14153159]
[1756583877049,0.5036,4352.8,4352.7,3.37153159]
[1756583879452,0.5036,4352.8,4352.7,0.23]
[1756583879755,0.5036,4352.8,4352.7,3.37153159]
[1756583884947,0.2966,4352.8,4352.7,3.37153159]
[1756583885252,0.17890319,4354.9,4352.7,3.37153159]
[1756583885253,3.2078,4354.1,4352.7,4.01475159]
[1756583885452,3.2078,4354.1,4353.1,3.2078]
[1756583885750,0.2966,4354.0,4353.2,0.23]
[1756583885940,0.22969,4354.0,4353.3,3.14153159]
[1756583886141,0.2966,4354.0,4353.4,0.23]
[1756583886345,0.2966,4354.0,4353.4,3.37153159]
[1756583886545,0.5036,4353.6,4353.5,3.14153159]
[1756583886742,0.2966,4354.0,4353.5,3.14153159]
[1756583886948,0.5036,4354.4,4354.0,3.14153159]
[1756583887154,0.2966,4354.3,4354.1,0.23]
[1756583887349,0.5123,4354.3,4354.2,0.2331]
[1756583887852,0.5123,4354.3,4354.2,3.37463159]
[1756583890353,0.3126,4354.3,4354.2,3.37463159]
[1756583891954,3.2078,4355.1,4354.2,3.37463159]
[1756583892148,0.22964,4355.0,4354.4,0.0012]
[1756583892355,0.5123,4354.6,4354.5,0.2331]
[1756583892751,0.5123,4354.6,4354.5,3.37463159]
[1756583895552,0.3126,4354.6,4354.5,3.37463159]
[1756583895852,3.2078,4355.1,4354.5,3.37463159]
[1756583896053,0.74193,4355.0,4354.9,0.0031]
[1756583896250,0.74193,4355.0,4354.9,0.2331]
[1756583896452,0.5123,4355.0,4354.9,0.2331]
[1756583896758,0.5123,4355.0,4354.9,3.37463159]
[1756583900266,0.3126,4355.6,4355.0,0.0012]
[1756583900562,0.5123,4355.6,4355.5,0.0031]
[1756583900762,0.5123,4355.6,4355.5,0.23]
[1756583907669,0.5123,4355.6,4355.5,3.37153159]
[1756583909471,0.54380115,4355.6,4355.5,3.37153159]
[1756583920778,0.54380115,4355.6,4355.5,0.23]
[1756583921882,0.54380115,4355.6,4355.5,3.37153159]
[1756583930582,0.54380115,4355.6,4355.5,0.23]
[1756583930785,0.54380115,4355.6,4355.5,3.37153159]
[1756583936889,0.54380115,4355.6,4355.5,0.23]
[1756583937190,0.54380115,4355.6,4355.5,3.37153159]
[1756583939889,0.54380115,4355.6,4355.5,0.23]
[1756583940093,0.54380115,4355.6,4355.5,3.37153159]
[1756583940289,0.23120115,4355.6,4355.0,2.054125]
[1756583940495,0.23120115,4355.6,4355.1,3.14153159]
[1756583940496,0.4808,4355.2,4355.1,3.14153159]
[1756583940694,0.4808,4355.2,4355.1,0.23]
[1756583941387,0.51230115,4355.2,4354.7,2.054125]
[1756583941587,0.22550115,4355.2,4354.8,0.23]
[1756583941788,0.2868,4355.0,4354.8,5.42565659]
[1756583941989,0.2868,4355.0,4354.9,3.14153159]
[1756583942397,0.31830115,4355.0,4354.9,3.14153159]
[1756583942791,0.51230115,4355.0,4354.9,3.14153159]
[1756583942992,0.51230115,4355.0,4354.9,3.37153159]
[1756583944397,0.31830115,4355.0,4354.9,3.37153159]
[1756583947799,0.03150115,4355.0,4354.9,3.37153159]
[1756583948999,0.03150115,4355.0,4354.9,3.60115159]
[1756583949900,0.03150115,4355.0,4354.9,3.37153159]
[1756583957002,0.03150115,4355.0,4354.9,6.57933159]
[1756583957210,3.2078,4356.8,4355.3,0.3022]
[1756583957406,3.2078,4356.8,4355.8,3.2078]
[1756583957596,0.1907,4356.1,4356.0,0.5043]
[1756583958004,0.1907,4356.1,4356.0,3.34393159]
[1756583958401,3.2078,4356.8,4356.0,3.04173159]
[1756583958603,0.1907,4356.3,4356.2,0.5043]
[1756583959007,0.1907,4356.3,4356.2,3.34393159]
[1756583959206,0.4926,4356.3,4356.2,3.34393159]
[1756583969711,0.4926,4356.3,4356.2,0.5043]
[1756583970710,0.4926,4356.3,4356.2,3.34393159]
[1756583981716,0.4926,4356.3,4356.2,0.5043]